Cogmind - Beta 13 @@@ ROGUE MODE // 2024.07.27 @ 13:26:13 Player: VraethrDalkr Result: Destroyed by H-61 Shepherd with Heavy Assault Cannon Performance ------------- Evolutions (3) 1500 Regions Visited (5) 1000 Robots Destroyed (22) 110 Value Destroyed (510) 510 Prototype IDs (0) 0 Alien Tech Used (0) 0 Bonus (500) 500 TOTAL SCORE: 3620 Bonus ------- Entered DSFs 500 Cogmind --------- Core Integrity 0/700 Matter 285/300 Energy 100/100 System Corruption 0% Temperature Cool (0) Movement Flying (35) Location -7/DSF Parts ------- > --- POWER (2) -------- (None) > --- PROPULSION (4) --- VTOL Module > --- UTILITY (5) ------ (None) > --- WEAPON (2) ------- (None) > --- INVENTORY (5) ---- Improved Core Shielding Plasma Cannon Shotgun Gauss Cannon Flamer Peak State ------------ > --- POWER ------------ Ion Engine Nuclear Core > --- PROPULSION ------- Wheel Armored Wheel Subdweller Monowheel Subdweller Monowheel > --- UTILITY ---------- Improved Heat Sink Improved Heat Sink Medium Storage Unit Improved Core Shielding Hardened Medium Armor Plating > --- WEAPON ----------- Plasma Cannon Barrage Gun > --- INVENTORY -------- Armored Wheel Improved Core Shielding Medium Laser Plasma Cannon Plasma Cannon Plasma Cannon Assault Rifle Shotgun Flamer Ripper [Rating: 35] Favorites ----------- Power Ion Engine Engine Ion Engine Power Core Nuclear Core Propulsion Subdweller Monowheel Wheel Subdweller Monowheel Flight Unit VTOL Module Utility Medium Storage Unit Device Improved Heat Sink Storage Medium Storage Unit Protection Hardened Medium Armor Plating Weapon Subdweller Machine Gun Energy Gun Medium Laser Energy Cannon Subdweller Beam Cannon Ballistic Gun Subdweller Machine Gun Slashing Weapon Ripper Build | -11 -10 -10 -9 -7 -7 ------- Run | Yrd Mat Sub Rec Fac DSF Slots Evolved 6 | . . . . 6 . Power 1 | . . . . 1 . Propulsion 2 | . . . . 2 . Utility 3 | . . . . 3 . Weapon . | . . . . . . Parts Attached 82 | 10 6 41 1 3 21 Power 14 | 1 . 9 . 1 3 Engine 12 | 1 . 9 . 1 1 Core 2 | . . . . . 2 Reactor . | . . . . . . Propulsion 29 | 5 2 16 1 2 3 Treads . | . . . . . . Leg . | . . . . . . Wheel 26 | 5 2 16 1 2 . Hover . | . . . . . . Flight 3 | . . . . . 3 Utility 18 | 2 1 8 . . 7 Device 10 | 1 . 7 . . 2 Storage 3 | 1 1 1 . . . Processor . | . . . . . . Hackware . | . . . . . . Protection 5 | . . . . . 5 Artifact . | . . . . . . Weapon 21 | 2 3 8 . . 8 Energy Gun 6 | 1 2 3 . . . Energy Cannon 6 | . . 1 . . 5 Ballistic Gun 8 | 1 1 4 . . 2 Ballistic Cannon . | . . . . . . Launcher . | . . . . . . Special Weapon . | . . . . . . Impact Weapon . | . . . . . . Slashing Weapon 1 | . . . . . 1 Piercing Weapon . | . . . . . . Special Melee Weapon . | . . . . . . Unidentified Prototypes . | . . . . . . Parts Lost 15 | . . 3 . . 12 Power 6 | . . 2 . . 4 Propulsion 5 | . . . . . 5 Utility 3 | . . 1 . . 2 Weapon 1 | . . . . . 1 Highest Loss Streak 9 | . . 2 . . 9 To Critical Strikes . | . . . . . . Average Slot Usage (%) 98 | . 100 99 100 69 84 Engine 13 | . 14 13 14 7 8 Wheel 27 | . 28 27 28 30 26 Device 13 | . 14 13 14 7 13 Storage 13 | . 14 14 14 7 6 Energy Gun 8 | . 14 9 . . . Energy Cannon 4 | . . 4 14 7 6 Ballistic Gun 13 | . 14 14 14 7 6 Naked Turns 2 | . . . . . 2 Heaviest Build 44 | 11 18 30 28 31 44 Greatest Support 62 | 32 24 40 40 62 62 Greatest Overweight (x) 5 | 1 . 1 . . 5 Average Overweight (x) . | . . . . . . Largest Inventory Capacity 10 | 8 10 10 10 10 10 Average Capacity 9 | 7 9 10 10 10 9 Most Carried 10 | 8 10 10 10 8 10 Average Carried 9 | 6 9 9 9 6 9 Final Capacity 10 | 8 10 10 10 10 5 Final Carried 10 | 8 10 10 9 6 5 Class Distribution -------------------- 83% | Mutant 16% | Scavenger-Mutant Dominant Class ---------------- Mutant | -10/Materials Mutant | -10/Subcaves Mutant | -9/Recycling Mutant | -7/Factory Scavenger-Mutant | -7/DSF Resources | -11 -10 -10 -9 -7 -7 ----------- Run | Yrd Mat Sub Rec Fac DSF Matter Collected 1138 | 323 84 461 6 . 264 Remotely . | . . . . . . Salvage Created 584 | 135 94 146 . . 209 Parts 40 | 10 7 7 . . 16 Haulers Intercepted . | . . . . . . Recyclers Shooed 1 | . 1 . . . . Parts Field Recycled . | . . . . . . Retrieved Matter . | . . . . . . Parts Self-Destructed 14 | . . 14 . . . Prevented . | . . . . . . Kills | -11 -10 -10 -9 -7 -7 ------- Run | Yrd Mat Sub Rec Fac DSF Combat Hostiles Destroyed 17 | . 6 5 . . 6 Guns 12 | . 6 5 . . 1 Cannons 5 | . . . . . 5 Classes Destroyed 6 | 3 1 1 . . 1 Worker 1 | 1 . . . . . Tunneler 3 | 3 . . . . . Recycler 1 | 1 . . . . . Swarmer 10 | . 6 1 . . 3 Specialist 3 | . . . . . 3 Subdweller 4 | . . 4 . . . Best Kill Streak 3 | 3 3 1 . . 3 Combat Bots Only 3 | . 3 1 . . 3 Max Kills in Single Turn 1 | 1 1 1 . . 1 Gunslinging . | . . . . . . Exploded . | . . . . . . Melee . | . . . . . . Uniques/NPCs Destroyed . | . . . . . . Combat | -11 -10 -10 -9 -7 -7 -------- Run | Yrd Mat Sub Rec Fac DSF Hostile Shots Fired 218 | . 27 37 . . 154 Missed 58 | . 8 11 . . 39 Damage Taken 2953 | . 149 666 1 . 2137 Core 829 | . 31 93 . . 705 Absorbed by Shields 39 | . . . . . 39 Redirected to Shielding 110 | . . . . . 110 Core Remaining (%) 75 | 100 . . 50 . . Volleys Fired 82 | 23 12 25 . . 22 Largest 2 | 2 2 2 . . 2 Hottest 110 | 60 70 110 . . 108 Shots Fired 163 | 46 24 50 . . 43 Gun 140 | 46 24 49 . . 21 Cannon 23 | . . 1 . . 22 Launcher . | . . . . . . Special . | . . . . . . Kinetic 81 | 23 12 25 . . 21 Thermal 82 | 23 12 25 . . 22 Explosive . | . . . . . . Electromagnetic . | . . . . . . Robot Hit Streak 11 | 7 7 11 . . 5 Robot Miss Streak 5 | 5 3 3 . . 5 Penetration Max . | . . . . . . Secondary Targets 1 | . 1 . . . . Max Gunslinging Chain 1 | . 1 . . . . Shots Hit Robots 96 | 25 13 36 . . 22 Core Hits 37 | 8 8 11 . . 10 Critical Kills . | . . . . . . Critical Parts Destroyed . | . . . . . . Critical Strikes 2 | . . 2 . . . Burn 2 | . . 2 . . . Melee Attacks . | . . . . . . Impact . | . . . . . . Slashing . | . . . . . . Piercing . | . . . . . . Sneak Attacks . | . . . . . . Combat Hostiles . | . . . . . . Follow-up Attacks . | . . . . . . Damage Inflicted 1555 | 232 164 704 3 . 452 Guns 1227 | 232 164 702 . . 129 Cannons 323 | . . . . . 323 Explosions . | . . . . . . Melee . | . . . . . . Ramming 5 | . . 2 3 . . Kinetic 656 | 91 51 385 . . 129 Thermal 894 | 141 113 317 . . 323 Explosive . | . . . . . . Electromagnetic . | . . . . . . Impact . | . . . . . . Slashing . | . . . . . . Piercing . | . . . . . . Highest Corruption . | . . . . . . Average Corruption . | . . . . . . Corruption Purged . | . . . . . . Corruption Blocked . | . . . . . . Overload Shots . | . . . . . . Overflow Damage . | . . . . . . Projectiles . | . . . . . . Explosions . | . . . . . . Melee . | . . . . . . Knockbacks . | . . . . . . Impact . | . . . . . . Kinetic . | . . . . . . Secondary . | . . . . . . Self-Inflicted Damage 2 | . . 1 1 . . Shots . | . . . . . . Rammed 2 | . . 1 1 . . Targets Rammed 2 | . . 1 1 . . Kicked . | . . . . . . Crushed . | . . . . . . Highest Temperature 100 | 40 100 12 . . . Average Temperature 23 | 16 39 4 . . . Received Heat Transfer 183 | . . 138 . . 45 Siege Activations . | . . . . . . Robots Corrupted . | . . . . . . Combat Hostiles . | . . . . . . Parts Fried . | . . . . . . Impact Corruptions . | . . . . . . Robots Melted . | . . . . . . Combat Hostiles . | . . . . . . Parts Melted 3 | . 1 1 . . 1 Heat Transferred 2048 | 325 333 753 . . 637 Parts Sabotaged . | . . . . . . Parts Stolen . | . . . . . . Parts Stripped . | . . . . . . Power Chain Reactions . | . . . . . . Alert | -11 -10 -10 -9 -7 -7 ------- Run | Yrd Mat Sub Rec Fac DSF Peak Influence 196 | 25 196 . 5 52 174 Initial 52 | . . . . 52 39 Average 55 | 13 86 . 3 52 102 Maximum Alert Level . | . . . . . . Low Security (%) 100 | 100 100 . 100 100 100 Level 1 . | . . . . . . Level 2 . | . . . . . . Level 3 . | . . . . . . Level 4 . | . . . . . . Level 5 . | . . . . . . High Security . | . . . . . . Max Security . | . . . . . . Squads Dispatched 3 | . . . . . 3 Investigation . | . . . . . . Extermination . | . . . . . . Reinforcement 3 | . . . . . 3 Assault . | . . . . . . Garrison . | . . . . . . Intercept . | . . . . . . Searches Triggered . | . . . . . . Construction Impeded . | . . . . . . Haulers Reinforced . | . . . . . . Active Scanning Responses . | . . . . . . Cargo Convoy Interrupts . | . . . . . . Stealth | -11 -10 -10 -9 -7 -7 --------- Run | Yrd Mat Sub Rec Fac DSF Distress Signals . | . . . . . . Communications Jammed . | . . . . . . Distress Signals . | . . . . . . Times Spotted 63 | . 11 34 . . 18 Peak Tracking Total 8 | . 4 6 . . 8 Tactical Retreats 7 | . 3 2 . . 2 Traps | -11 -10 -10 -9 -7 -7 ------- Run | Yrd Mat Sub Rec Fac DSF Traps Triggered 4 | . . 2 . . 2 Indirectly . | . . . . . . Trap Hack Attempts . | . . . . . . Triggered . | . . . . . . Disarmed . | . . . . . . Reprogrammed . | . . . . . . Reused . | . . . . . . Traps Extracted . | . . . . . . Installed . | . . . . . . Triggered 2 | . . 2 . . . Machines | -11 -10 -10 -9 -7 -7 ---------- Run | Yrd Mat Sub Rec Fac DSF Machines Disabled . | . . . . . . Max in Single Turn . | . . . . . . Machines Repaired . | . . . . . . Machines Dismantled . | . . . . . . Machines Sabotaged . | . . . . . . Overloaded Fab Kills . | . . . . . . Hacking | -11 -10 -10 -9 -7 -7 --------- Run | Yrd Mat Sub Rec Fac DSF Machines Accessed 14 | . 5 1 7 1 . Terminals 8 | . 4 . 3 1 . Fabricators . | . . . . . . Repair Stations 1 | . 1 . . . . Recycling Units 4 | . . . 4 . . Scanalyzers . | . . . . . . Garrison Access . | . . . . . . Total Hacks 29 | . 12 4 12 1 . Successful 22 | . 8 4 9 1 . Failed 7 | . 4 . 3 . . Catastrophic 1 | . 1 . . . . Database Lockouts . | . . . . . . Manual 2 | . 1 1 . . . Terminals 18 | . 10 . 7 1 . Fabricators . | . . . . . . Repair Stations 2 | . 2 . . . . Recycling Units 5 | . . . 5 . . Scanalyzers . | . . . . . . Garrison Access . | . . . . . . Terminal Hacks 16 | . 7 4 4 1 . Record 4 | . . 4 . . . Robot Analysis 1 | . . . 1 . . Open DSF 1 | . . . . 1 . Branch Access Points 1 | . 1 . . . . Terminal Index 1 | . 1 . . . . Alert Level 2 | . 1 . 1 . . Locate Traps 3 | . 3 . . . . Zone Layout 3 | . 1 . 2 . . Fabricator Hacks . | . . . . . . Repair Station Hacks 1 | . 1 . . . . Scan Component 1 | . 1 . . . . Recycling Unit Hacks 5 | . . . 5 . . Process 1 | . . . 1 . . Report Inventory 4 | . . . 4 . . Scanalyzer . | . . . . . . Garrison Access Hacks . | . . . . . . Unauthorized Hacks . | . . . . . . Terminals . | . . . . . . Fabricators . | . . . . . . Repair Stations . | . . . . . . Recycling Units . | . . . . . . Scanalyzers . | . . . . . . Garrison Access . | . . . . . . Data Cores Recovered . | . . . . . . Used . | . . . . . . Hacking Detections 5 | . 3 . 2 . . Full Trace Events 1 | . . . 1 . . Feedback Events . | . . . . . . Feedback Blocked . | . . . . . . Robot Schematics Acquired . | . . . . . . Robots Built . | . . . . . . Authchips . | . . . . . . Time . | . . . . . . Total Robot Build Rating . | . . . . . . Part Schematics Acquired . | . . . . . . Parts Built . | . . . . . . Authchips . | . . . . . . Time . | . . . . . . Total Part Build Rating . | . . . . . . Parts Repaired . | . . . . . . Time . | . . . . . . Parts Recycled . | . . . . . . Recycled Matter 9 | . . . 9 . . Retrieved Matter . | . . . . . . Retrieved Components . | . . . . . . Parts Scanalyzed . | . . . . . . Part Schematics Acquired . | . . . . . . Parts Damaged . | . . . . . . Bothacking | -11 -10 -10 -9 -7 -7 ------------ Run | Yrd Mat Sub Rec Fac DSF Used RIF Installer . | . . . . . . Robots Hacked . | . . . . . . Non-combat . | . . . . . . Combat . | . . . . . . Robot Hacks Applied . | . . . . . . Relay Couplers Released . | . . . . . . Fabnet Peak Effective % . | . . . . . . Robots Rewired . | . . . . . . Allies Hacked . | . . . . . . Hacks Repelled . | . . . . . . Allies | -11 -10 -10 -9 -7 -7 -------- Run | Yrd Mat Sub Rec Fac DSF Total Allies . | . . . . . . Largest Group . | . . . . . . Highest-Rated Group . | . . . . . . Highest-Rated Ally . | . . . . . . Total Orders . | . . . . . . Ally Attacks . | . . . . . . Total Damage . | . . . . . . Kills . | . . . . . . Allies Corrupted . | . . . . . . Allies Melted . | . . . . . . Intel | -11 -10 -10 -9 -7 -7 ------- Run | Yrd Mat Sub Rec Fac DSF Robot Analysis Total 1 | . . . 1 . . Derelict Logs Recovered 2 | . . 2 . . . Drone Launches . | . . . . . . Drone Recoveries . | . . . . . . Exploration | -11 -10 -10 -9 -7 -7 ------------- Run | Yrd Mat Sub Rec Fac DSF Turns Passed 5286 | 487 807 3283 390 5 314 Spaces Moved 4158 | 202 551 2930 338 3 134 Core 19 | 15 . . . . 4 Treads . | . . . . . . Legs . | . . . . . . Wheels 4108 | 187 551 2930 338 3 99 Hover . | . . . . . . Flight 31 | . . . . . 31 Fastest Speed 32 | 50 80 90 110 97 32 Average Speed 100 | 86 86 104 110 97 84 Slowest Speed 435 | 100 90 120 110 97 435 Overloaded Moves . | . . . . . . Propulsion Burnouts . | . . . . . . Robots Hopped . | . . . . . . Cave-ins Triggered . | . . . . . . Exploration Rate (%) 61 | 11 65 96 70 . 65 Regions Visited 5 Branch Regions 2 Pre-discovered Areas 2 | . . 2 . . . Known Exits Taken 1 | . . . . 1 . Unknown Exits Taken 4 | 1 1 1 1 . . Scrap Searched 3 | . . 3 . . . Spaces Dug . | . . . . . . Terrain Destroyed . | . . . . . . Melee . | . . . . . . Projectile . | . . . . . . AOE . | . . . . . . Terrain Rammed . | . . . . . . Walls Destroyed . | . . . . . . Machines Disabled . | . . . . . . Actions | -11 -10 -10 -9 -7 -7 --------- Run | Yrd Mat Sub Rec Fac DSF Total 5124 | 470 867 3127 356 5 299 Wait 665 | 223 276 69 10 . 87 Move 4153 | 201 550 2929 337 2 134 Hop . | . . . . . . Pick Up 43 | 9 10 15 . . 9 Fast Attach 26 | 7 1 11 . . 7 Attach 18 | . . 11 1 3 3 Detach 5 | . . 5 . . . Swap 38 | 3 5 19 . . 11 Drop 76 | 4 13 39 1 . 19 Fire 82 | 23 12 25 . . 22 Melee . | . . . . . . Ram 2 | . . 1 1 . . Kick . | . . . . . . Crush . | . . . . . . Escape Stasis 6 | . . . . . 6 Rewire 10 | . . 3 6 . 1 Trap . | . . . . . . Miscellaneous . | . . . . . . Route ------- -11/Scrapyard -10/Materials (discovered 4 exits: [*Mat x2] / Min / *Sub) -10/Subcaves (discovered 3 exits: [*Mat x2] / *Rec) -9/Recycling -7/Factory -7/DSF History --------- Turn | Location | Event 28 | -11/Scrapyard | Discovered new exit (range 15) 488 | -11/Scrapyard | Entered Materials 489 | -10/Materials | Build established: Mutant 515 | -10/Materials | Identified exit to Mines 708 | -10/Materials | Discovered new exit (range 11) 718 | -10/Materials | Discovered new exit (range 3) 770 | -10/Materials | Discovered new exit (range 16) 1295 | -10/Materials | Entered Subcaves 1341 | -10/Subcaves | Shifting Twisted Machinery released Ripper 1343 | -10/Subcaves | Shifting Twisted Machinery released Barrage Gun 1352 | -10/Subcaves | Learned location of 1 exit from Materials 1406 | -10/Subcaves | Ambushed by swarm of Subdwellers 1423 | -10/Subcaves | Ambushed by Subdwellers from Twisted Machinery 1608 | -10/Subcaves | Learned location of Zion (-7) 1608 | -10/Subcaves | Met a Zionite searching for "candidates" 1608 | -10/Subcaves | Discovered new exit (range 15) 1907 | -10/Subcaves | Discovered new exit (range 12) 2312 | -10/Subcaves | A swath of the cavern ceiling suddenly collapsed 2414 | -10/Subcaves | Shifting Twisted Machinery released Sub. Laser 2419 | -10/Subcaves | Shifting Twisted Machinery released Scrap Shield 2436 | -10/Subcaves | Shifting Twisted Machinery released Sub. Monowheel 2444 | -10/Subcaves | Shifting Twisted Machinery released Sub. Beam Cannon 2451 | -10/Subcaves | Discovered new exit (range 5) 2810 | -10/Subcaves | Disturbed a concealed Subdweller 2810 | -10/Subcaves | Ambushed by Subdweller buried in earth 2968 | -10/Subcaves | Build established: Scavenger-Mutant 3279 | -10/Subcaves | Build established: Mutant 3578 | -10/Subcaves | Visited Clippyterm 4578 | -10/Subcaves | Entered Recycling 4900 | -9/Recycling | Discovered new exit (range 16) 4968 | -9/Recycling | Entered Factory 4968 | -7/Factory | Evolved 6 slots: Power x1, Propulsion x2, Utility x3 4973 | -7/Factory | Identified exit to DSF 4973 | -7/Factory | Entered DSF 5025 | -7/DSF | Additional patrols routed to DSF 5238 | -7/DSF | Lost 3 parts (3p) 5267 | -7/DSF | Core integrity fell below 50% 5267 | -7/DSF | Released all parts (3) 5274 | -7/DSF | Core integrity fell below 20% 5287 | -7/DSF | Destroyed by H-61 Shepherd with Heavy Assault Cannon Last Messages --------------- 05271_ Acquired VTOL Module. 05273_ Slug penetrates S-27 Virus. 05281_ Triggered Stasis Trap. 05281_ A bubble of rippling energy engulfs the area. 05281_ Field strength at 92. 05282_ Field strength at 84. 05282_ VTOL Module destroyed. 05282_ Critical hit (Blast). 05282_ Knocked back. 05283_ Triggered Stasis Trap. 05283_ A bubble of rippling energy engulfs the area. 05283_ Field strength at 95. 05283_ Field strength at 90. 05284_ Field strength at 85. 05285_ Field strength at 80. 05286_ Field strength at 71. 05287_ Field strength at 66. [Achievement: Back For More] Map ----- +----------------------------------------------------+ | | | | | ????????????????????????????????????? | | ????????????????????????????????????? | | ????????????????????????????????????? | | ?????????##?????????????????????????? | | ?????????""#???????????##???????????? | | ?????????#"#??????????# #???????????? | | ??????####"##???????###"#####???????? | | ??????#"""""#########!!===//#???????? | | ??????#"""""## # #!!===//#???????? | | ????"##"" [ % #???????? | | ????""""" [!= #???????? | | ????###"" ## ]#]]]##" ###???????? | | ??????### ###]]#]]]##" "##???????? | | ???????## #######+##!! !! #???????? | | ???????# ]]#??## ##!!* % #???????? | | ???????# ]]#?##%[ +!!%[/ #???????? | | ???????## ###?#[]####! =]###???????? | | ???????# [[]#?#!!#?#[[!] !!#???????? | | ???????# ]#?####?#[[=]%!!#???????? | | ???????# ]]#??????#[[ * !!#???????? | | ??????### ############ %=###???????? | | ??????#!! ## #!!!### [ ##???!#???? | | ??????#!! s## #!!!## ##!!!#!!!# | | ??????# s@ Hx x | | ??????# ^ % x a | | ??????# a | | ??????# ## #!!!;#a ##!!!#!!!# | | ??????# ## #!!!### ##?!!!#??!# | | ??????###############?# #???+##???? | | ??????????????????????! ]]?? #????? | | ??????????????????????! ]]#??#????? | | ?????????????????????!! ]]#???????? | | ?????????????????????## ###???????? | | ?????????????????????? ?????????? | | ?????????????????????? " ?????????? | | ?????????????????????? "%" ????????? | | ??????????????????????# "##????????? | | ??????????????????????# #?????????? | | ??????????????????????? ?????????? | | ??????????????????????? ?????????? | | ????????????????????????????????????? | | ????????????????????????????????????? | | ????????????????????????????????????? | | ????????????????????????????????????? | | ????????????????????????????????????? | | ????????????????????????????????????? | | ????????????????????????????????????? | | ????????????????????????????????????? | +----------------------------------------------------+ Best States ------------- Heat Dissipation 62 Coolant Potential 50 Energy Generation 19 Energy Capacity 390 Matter Stores 300 Matter Capacity 300 Sight Range 21 Robot Scan Range 14 Terrain Scan Range 16 Terrain Scan Density 10 Armor Coverage 225 Core Shielding 30 Evasion (%) 63 Item Schematics ----------------- None Robot Schematics ------------------ None Fabricated ------------ Nothing Alien Tech Used ----------------- None Achievements -------------- Back For More Challenges ------------ None Game ------ Seed GhostGaussSuite Manual? 0 Play Time 01:02:46 Cumulative 104.9 hours Start 2024.07.27 @ 11:06:37 End 2024.07.27 @ 13:26:13 Sessions 13 Manual Loads 0 Difficulty Rogue Special Mode None Game No. 50 Rogue 40 Adventurer 10 Explorer 0 Win Type - Total 1 Types 0/0/1/0/0/0/0/0/0 Lore% 41 Gallery% 49 Achievement% 40 Wizard Run 0 Options --------- Layout 1 ASCII 0 Keyboard 0 Movement Arrows Keybinds 0 Fullscreen 2 Font 32/SmallcapsGlow Map View 50x35 Zoom Use 0% Tactical HUD 1 Map Filters NONE Filters NONE Steam 0 RUN: 19f5ac46-e02d-41ff-978a-d839b4099ef8